[Event "Titled Tuesday Blitz May 30 Early 2023"]
[White "Martinez Alcantara, Jose Eduardo"]
[Black "Naroditsky, Daniel"]
[WhiteFideId "3805662"]
[BlackFideId "2026961"]
[WhiteElo "2711"]
[BlackElo "2633"]
[Result "0-1"]
[Round "10"]
[TimeControl "180+2"]
[Date "2023.05.30"]
[WhiteClock "0:00:02"]
[BlackClock "0:00:04"]

1. e4 {[%clk 0:03:00]}  c6 {[%clk 0:02:55]} 2. d4 {[%clk 0:03:00]}  d5 {[%clk 0:02:55]} 3. e5 {[%clk 0:03:01]}  c5 {[%clk 0:02:55]} 4. dxc5 {[%clk 0:03:01]}  e6 {[%clk 0:02:55]} 5. c3 {[%clk 0:03:00]}  Bxc5 {[%clk 0:02:53]} 6. Qg4 {[%clk 0:03:00]}  Kf8 {[%clk 0:02:41]} 7. Bd3 {[%clk 0:02:59]}  Nc6 {[%clk 0:02:41]} 8. Nf3 {[%clk 0:02:59]}  Nge7 {[%clk 0:02:35]} 9. b4 {[%clk 0:02:51]}  Bb6 {[%clk 0:02:35]} 10. b5 {[%clk 0:02:44]}  Nb8 {[%clk 0:02:31]} 11. Ba3 {[%clk 0:02:43]}  Nd7 {[%clk 0:02:28]} 12. Nbd2 {[%clk 0:02:41]}  Bc5 {[%clk 0:02:28]} 13. Bb4 {[%clk 0:02:28]}  Qc7 {[%clk 0:02:27]} 14. Qf4 {[%clk 0:02:09]}  b6 {[%clk 0:02:06]} 15. O-O {[%clk 0:02:08]}  Ke8 {[%clk 0:01:51]} 16. Rfe1 {[%clk 0:02:07]}  h6 {[%clk 0:01:49]} 17. Nd4 {[%clk 0:02:03]}  Bb7 {[%clk 0:01:46]} 18. N2f3 {[%clk 0:01:54]}  Rc8 {[%clk 0:01:38]} 19. h4 {[%clk 0:01:53]}  Rf8 {[%clk 0:01:33]} 20. Qg4 {[%clk 0:01:49]}  g6 {[%clk 0:01:29]} 21. Qf4 {[%clk 0:01:48]}  Rh8 {[%clk 0:01:21]} 22. a4 {[%clk 0:01:48]}  Nf5 {[%clk 0:01:12]} 23. a5 {[%clk 0:01:27]}  Kf8 {[%clk 0:01:12]} 24. a6 {[%clk 0:01:04]}  Ba8 {[%clk 0:01:12]} 25. Rab1 {[%clk 0:01:04]}  Kg7 {[%clk 0:01:09]} 26. g4 {[%clk 0:01:04]}  Nxd4 {[%clk 0:01:07]} 27. cxd4 {[%clk 0:01:05]}  Bxb4 {[%clk 0:01:06]} 28. Rxb4 {[%clk 0:01:06]}  Qc3 {[%clk 0:01:06]} 29. Qd2 {[%clk 0:01:05]}  Qa3 {[%clk 0:00:41]} 30. Re3 {[%clk 0:00:56]}  Rc3 {[%clk 0:00:38]} 31. Rb1 {[%clk 0:00:52]}  Rhc8 {[%clk 0:00:38]} 32. Kg2 {[%clk 0:00:48]}  Qe7 {[%clk 0:00:37]} 33. Rb2 {[%clk 0:00:41]}  Qa3 {[%clk 0:00:37]} 34. Rb1 {[%clk 0:00:36]}  Nc5 {[%clk 0:00:28]} 35. Ne1 {[%clk 0:00:27]}  Nb3 {[%clk 0:00:24]} 36. Rxb3 {[%clk 0:00:26]}  Qxb3 {[%clk 0:00:23]} 37. Rf3 {[%clk 0:00:23]}  Qb4 {[%clk 0:00:21]} 38. Qf4 {[%clk 0:00:22]}  Qe7 {[%clk 0:00:21]} 39. g5 {[%clk 0:00:17]}  hxg5 {[%clk 0:00:18]} 40. hxg5 {[%clk 0:00:16]}  Rh8 {[%clk 0:00:18]} 41. Rg3 {[%clk 0:00:13]}  Kg8 {[%clk 0:00:13]} 42. Qd2 {[%clk 0:00:13]}  Rc4 {[%clk 0:00:10]} 43. Nf3 {[%clk 0:00:13]}  Rh5 {[%clk 0:00:09]} 44. Qe3 {[%clk 0:00:13]}  Qc7 {[%clk 0:00:09]} 45. Nh2 {[%clk 0:00:12]}  Rc1 {[%clk 0:00:05]} 46. Ng4 {[%clk 0:00:13]}  Rhh1 {[%clk 0:00:05]} 47. Kf3 {[%clk 0:00:09]}  Qc3 {[%clk 0:00:05]} 48. Kf4 {[%clk 0:00:09]}  Rcd1 {[%clk 0:00:04]} 49. Nf6+ {[%clk 0:00:05]}  Kg7 {[%clk 0:00:03]} 50. Ne8+ {[%clk 0:00:05]}  Kf8 {[%clk 0:00:03]} 51. Nf6 {[%clk 0:00:06]}  Rhe1 {[%clk 0:00:02]} 52. Rh3 {[%clk 0:00:06]}  Rh1 {[%clk 0:00:02]} 53. Rxh1 {[%clk 0:00:06]}  Rxh1 {[%clk 0:00:03]} 54. Kg3 {[%clk 0:00:06]}  Qa1 {[%clk 0:00:03]} 55. Ng4 {[%clk 0:00:04]}  Qg1+ {[%clk 0:00:03]} 56. Kf4 {[%clk 0:00:05]}  Rh4 {[%clk 0:00:03]} 57. Qf3 {[%clk 0:00:02]}  Qc1+ {[%clk 0:00:04]} 58. Kg3 {[%clk 0:00:02]}  Qxg5 {[%clk 0:00:04]} 59. Be2 {[%clk 0:00:02]}  Rh5 {[%clk 0:00:02]} 60. Kg2 {[%clk 0:00:02]}  Qh4 {[%clk 0:00:02]} 61. Qf4 {[%clk 0:00:02]}  Qh3+ {[%clk 0:00:03]} 62. Kg1 {[%clk 0:00:02]}  Qh1# {[%clk 0:00:04]} 0-1


[Site "https://www.chess.com"]

[Event "Titled Tuesday Blitz May 30 Early 2023"]
[White "Kuzubov, Yuriy"]
[Black "Nepomniachtchi, Ian"]
[WhiteFideId "14112906"]
[BlackFideId "4168119"]
[WhiteElo "2496"]
[BlackElo "2781"]
[Result "0-1"]
[Round "10"]
[TimeControl "180+2"]
[Date "2023.05.30"]
[WhiteClock "0:00:14"]
[BlackClock "0:01:48"]

1. d4 {[%clk 0:03:00]}  Nf6 {[%clk 0:02:59]} 2. c4 {[%clk 0:03:01]}  g6 {[%clk 0:03:00]} 3. g3 {[%clk 0:03:00]}  Bg7 {[%clk 0:03:00]} 4. Bg2 {[%clk 0:03:00]}  O-O {[%clk 0:03:01]} 5. e3 {[%clk 0:02:58]}  c5 {[%clk 0:02:57]} 6. dxc5 {[%clk 0:02:58]}  Na6 {[%clk 0:02:56]} 7. Ne2 {[%clk 0:02:58]}  Nxc5 {[%clk 0:02:56]} 8. O-O {[%clk 0:02:59]}  d6 {[%clk 0:02:55]} 9. Nbc3 {[%clk 0:02:59]}  Bf5 {[%clk 0:02:55]} 10. b3 {[%clk 0:02:55]}  Qd7 {[%clk 0:02:55]} 11. Re1 {[%clk 0:02:53]}  Nd3 {[%clk 0:02:53]} 12. Rf1 {[%clk 0:02:50]}  Nxc1 {[%clk 0:02:48]} 13. Rxc1 {[%clk 0:02:51]}  Bh3 {[%clk 0:02:47]} 14. Bxh3 {[%clk 0:02:39]}  Qxh3 {[%clk 0:02:48]} 15. Nf4 {[%clk 0:02:39]}  Qd7 {[%clk 0:02:47]} 16. Nfd5 {[%clk 0:02:38]}  Ne8 {[%clk 0:02:42]} 17. Qd2 {[%clk 0:02:36]}  e6 {[%clk 0:02:39]} 18. Nf4 {[%clk 0:02:35]}  Nf6 {[%clk 0:02:39]} 19. Rfd1 {[%clk 0:02:34]}  Rfd8 {[%clk 0:02:40]} 20. Nfe2 {[%clk 0:02:25]}  a6 {[%clk 0:02:37]} 21. Na4 {[%clk 0:02:15]}  Qe7 {[%clk 0:02:33]} 22. Nb6 {[%clk 0:02:11]}  Rab8 {[%clk 0:02:33]} 23. Qb4 {[%clk 0:02:03]}  h5 {[%clk 0:02:31]} 24. Kg2 {[%clk 0:02:02]}  h4 {[%clk 0:02:30]} 25. a4 {[%clk 0:01:58]}  Ne4 {[%clk 0:02:30]} 26. f3 {[%clk 0:01:53]}  Nc5 {[%clk 0:02:23]} 27. Rb1 {[%clk 0:01:50]}  Qf6 {[%clk 0:02:21]} 28. Rf1 {[%clk 0:01:39]}  Qf5 {[%clk 0:02:19]} 29. Qd2 {[%clk 0:01:35]}  h3+ {[%clk 0:02:16]} 30. Kg1 {[%clk 0:01:32]}  d5 {[%clk 0:02:09]} 31. cxd5 {[%clk 0:01:23]}  exd5 {[%clk 0:02:10]} 32. a5 {[%clk 0:01:11]}  Ne6 {[%clk 0:02:01]} 33. Rbd1 {[%clk 0:00:40]}  d4 {[%clk 0:02:00]} 34. e4 {[%clk 0:00:40]}  Qb5 {[%clk 0:01:59]} 35. Nd5 {[%clk 0:00:33]}  Qxb3 {[%clk 0:01:53]} 36. Rb1 {[%clk 0:00:31]}  Qa3 {[%clk 0:01:52]} 37. Rfd1 {[%clk 0:00:18]}  Qxf3 {[%clk 0:01:49]} 38. Qd3 {[%clk 0:00:14]}  Qg2# {[%clk 0:01:48]} 0-1


[Site "https://www.chess.com"]

[Event "Titled Tuesday Blitz May 30 Early 2023"]
[White "Bluebaum, Matthias"]
[Black "Ahmadzada, Ahmad"]
[WhiteFideId "24651516"]
[BlackFideId "13413007"]
[WhiteElo "2639"]
[BlackElo "2388"]
[Result "1-0"]
[Round "10"]
[TimeControl "180+2"]
[Date "2023.05.30"]
[WhiteClock "0:00:47"]
[BlackClock "0:00:03"]

1. d4 {[%clk 0:03:00]}  Nf6 {[%clk 0:02:59]} 2. c4 {[%clk 0:03:01]}  c5 {[%clk 0:03:00]} 3. d5 {[%clk 0:03:01]}  e6 {[%clk 0:03:00]} 4. Nc3 {[%clk 0:03:02]}  exd5 {[%clk 0:03:01]} 5. cxd5 {[%clk 0:03:03]}  d6 {[%clk 0:03:02]} 6. Nf3 {[%clk 0:03:00]}  a6 {[%clk 0:02:59]} 7. a4 {[%clk 0:03:00]}  g6 {[%clk 0:03:00]} 8. Bg5 {[%clk 0:03:01]}  Bg7 {[%clk 0:03:00]} 9. Nd2 {[%clk 0:03:01]}  h6 {[%clk 0:02:58]} 10. Bh4 {[%clk 0:03:01]}  g5 {[%clk 0:02:59]} 11. Bg3 {[%clk 0:03:02]}  Nh5 {[%clk 0:02:59]} 12. e4 {[%clk 0:03:02]}  Nxg3 {[%clk 0:02:59]} 13. hxg3 {[%clk 0:03:02]}  Nd7 {[%clk 0:02:58]} 14. Nc4 {[%clk 0:03:01]}  Ne5 {[%clk 0:02:53]} 15. Ne3 {[%clk 0:03:01]}  Qe7 {[%clk 0:02:48]} 16. f4 {[%clk 0:02:51]}  Ng6 {[%clk 0:02:41]} 17. Qf3 {[%clk 0:02:51]}  Bd7 {[%clk 0:02:22]} 18. Bd3 {[%clk 0:02:49]}  Rb8 {[%clk 0:02:16]} 19. O-O {[%clk 0:02:37]}  O-O {[%clk 0:02:05]} 20. Nf5 {[%clk 0:02:30]}  Qd8 {[%clk 0:01:23]} 21. Rae1 {[%clk 0:02:23]}  c4 {[%clk 0:00:39]} 22. Nxg7 {[%clk 0:02:17]}  Kxg7 {[%clk 0:00:38]} 23. Bb1 {[%clk 0:02:11]}  f6 {[%clk 0:00:32]} 24. Qe3 {[%clk 0:01:43]}  b5 {[%clk 0:00:31]} 25. axb5 {[%clk 0:01:43]}  axb5 {[%clk 0:00:31]} 26. e5 {[%clk 0:01:44]}  fxe5 {[%clk 0:00:22]} 27. Bxg6 {[%clk 0:01:44]}  Kxg6 {[%clk 0:00:10]} 28. fxe5 {[%clk 0:01:44]}  Rxf1+ {[%clk 0:00:10]} 29. Rxf1 {[%clk 0:01:44]}  Qb6 {[%clk 0:00:10]} 30. Qxb6 {[%clk 0:01:20]}  Rxb6 {[%clk 0:00:10]} 31. e6 {[%clk 0:01:21]}  Be8 {[%clk 0:00:11]} 32. Rf8 {[%clk 0:01:22]}  Rb8 {[%clk 0:00:11]} 33. Ne4 {[%clk 0:01:22]}  Kg7 {[%clk 0:00:11]} 34. Rxe8 {[%clk 0:01:06]}  Rxe8 {[%clk 0:00:11]} 35. Nxd6 {[%clk 0:01:07]}  Re7 {[%clk 0:00:04]} 36. Nf5+ {[%clk 0:01:08]}  Kf6 {[%clk 0:00:04]} 37. Nxe7 {[%clk 0:01:09]}  b4 {[%clk 0:00:03]} 38. Nc6 {[%clk 0:00:44]}  c3 {[%clk 0:00:03]} 39. bxc3 {[%clk 0:00:45]}  b3 {[%clk 0:00:04]} 40. e7 {[%clk 0:00:46]}  Kf7 {[%clk 0:00:03]} 41. Ne5+ {[%clk 0:00:47]} 1-0


[Site "https://www.chess.com"]

[Event "Titled Tuesday Blitz May 30 Early 2023"]
[White "Kramnik, Vladimir"]
[Black "Bachmann, Axel"]
[WhiteFideId "4101588"]
[BlackFideId "3700488"]
[WhiteElo "2703"]
[BlackElo "2605"]
[Result "1-0"]
[Round "10"]
[TimeControl "180+2"]
[Date "2023.05.30"]
[WhiteClock "0:00:03"]
[BlackClock "0:00:02"]

1. e4 {[%clk 0:03:00]}  c6 {[%clk 0:02:59]} 2. d4 {[%clk 0:03:00]}  d5 {[%clk 0:02:50]} 3. Nd2 {[%clk 0:03:00]}  dxe4 {[%clk 0:02:49]} 4. Nxe4 {[%clk 0:03:01]}  Nd7 {[%clk 0:02:50]} 5. c3 {[%clk 0:02:58]}  Ngf6 {[%clk 0:02:48]} 6. Bd3 {[%clk 0:02:58]}  Nxe4 {[%clk 0:02:40]} 7. Bxe4 {[%clk 0:02:58]}  Nf6 {[%clk 0:02:41]} 8. Bc2 {[%clk 0:02:58]}  Bg4 {[%clk 0:02:39]} 9. Ne2 {[%clk 0:02:57]}  e6 {[%clk 0:02:39]} 10. f3 {[%clk 0:02:45]}  Bh5 {[%clk 0:02:38]} 11. Nf4 {[%clk 0:02:31]}  Bd6 {[%clk 0:02:38]} 12. Nxh5 {[%clk 0:02:28]}  Nxh5 {[%clk 0:02:38]} 13. g3 {[%clk 0:02:27]}  Nf6 {[%clk 0:02:25]} 14. Qd3 {[%clk 0:02:21]}  Qc7 {[%clk 0:02:14]} 15. Be3 {[%clk 0:02:19]}  O-O-O {[%clk 0:02:08]} 16. O-O-O {[%clk 0:02:19]}  h5 {[%clk 0:02:06]} 17. Bg5 {[%clk 0:02:13]}  c5 {[%clk 0:01:54]} 18. Qc4 {[%clk 0:01:59]}  Rd7 {[%clk 0:01:43]} 19. Bxf6 {[%clk 0:01:55]}  gxf6 {[%clk 0:01:42]} 20. d5 {[%clk 0:01:55]}  Re7 {[%clk 0:01:34]} 21. Rhe1 {[%clk 0:01:53]}  h4 {[%clk 0:01:15]} 22. dxe6 {[%clk 0:01:32]}  hxg3 {[%clk 0:01:09]} 23. exf7 {[%clk 0:01:19]}  Bf4+ {[%clk 0:00:31]} 24. Kb1 {[%clk 0:01:16]}  Rxf7 {[%clk 0:00:20]} 25. Qe6+ {[%clk 0:01:08]}  Kb8 {[%clk 0:00:20]} 26. hxg3 {[%clk 0:00:58]}  Bxg3 {[%clk 0:00:21]} 27. Rh1 {[%clk 0:00:47]}  Rhf8 {[%clk 0:00:16]} 28. Bf5 {[%clk 0:00:44]}  Re7 {[%clk 0:00:14]} 29. Qc4 {[%clk 0:00:39]}  a6 {[%clk 0:00:14]} 30. Rd5 {[%clk 0:00:36]}  Rd8 {[%clk 0:00:04]} 31. Rxc5 {[%clk 0:00:29]}  Qb6 {[%clk 0:00:04]} 32. Rc8+ {[%clk 0:00:18]}  Rxc8 {[%clk 0:00:04]} 33. Qxc8+ {[%clk 0:00:18]}  Ka7 {[%clk 0:00:05]} 34. Be4 {[%clk 0:00:16]}  Be5 {[%clk 0:00:02]} 35. Qc4 {[%clk 0:00:15]}  Rd7 {[%clk 0:00:01]} 36. Qb3 {[%clk 0:00:12]}  Rc7 {[%clk 0:00:01]} 37. Qxb6+ {[%clk 0:00:12]}  Kxb6 {[%clk 0:00:02]} 38. Kc2 {[%clk 0:00:12]}  Ka7 {[%clk 0:00:03]} 39. Rd1 {[%clk 0:00:11]}  b5 {[%clk 0:00:03]} 40. a3 {[%clk 0:00:12]}  Kb6 {[%clk 0:00:03]} 41. Rd8 {[%clk 0:00:11]}  Rg7 {[%clk 0:00:04]} 42. Kb3 {[%clk 0:00:08]}  Re7 {[%clk 0:00:03]} 43. Rc8 {[%clk 0:00:08]}  Re6 {[%clk 0:00:01]} 44. a4 {[%clk 0:00:07]}  Rd6 {[%clk 0:00:01]} 45. Rb8+ {[%clk 0:00:06]}  Ka7 {[%clk 0:00:01]} 46. Rb7+ {[%clk 0:00:06]}  Ka8 {[%clk 0:00:01]} 47. Rxb5+ {[%clk 0:00:06]}  Ka7 {[%clk 0:00:01]} 48. Rb7+ {[%clk 0:00:07]}  Ka8 {[%clk 0:00:02]} 49. Rb6+ {[%clk 0:00:07]}  Ka7 {[%clk 0:00:02]} 50. Rxd6 {[%clk 0:00:07]}  Bxd6 {[%clk 0:00:03]} 51. Kc4 {[%clk 0:00:05]}  Kb6 {[%clk 0:00:03]} 52. b4 {[%clk 0:00:05]}  a5 {[%clk 0:00:04]} 53. Kb3 {[%clk 0:00:05]}  Be5 {[%clk 0:00:04]} 54. Kc4 {[%clk 0:00:06]}  Ka6 {[%clk 0:00:03]} 55. Bd3 {[%clk 0:00:05]}  Kb6 {[%clk 0:00:04]} 56. Kb3 {[%clk 0:00:05]}  Bd6 {[%clk 0:00:04]} 57. Kc4 {[%clk 0:00:05]}  Be5 {[%clk 0:00:04]} 58. Bf1 {[%clk 0:00:05]}  Bd6 {[%clk 0:00:05]} 59. Bh3 {[%clk 0:00:04]}  Be5 {[%clk 0:00:05]} 60. Bd7 {[%clk 0:00:04]}  Ka6 {[%clk 0:00:04]} 61. Bc6 {[%clk 0:00:03]}  Kb6 {[%clk 0:00:05]} 62. Bb5 {[%clk 0:00:03]}  Bd6 {[%clk 0:00:05]} 63. bxa5+ {[%clk 0:00:03]}  Kxa5 {[%clk 0:00:06]} 64. Kd5 {[%clk 0:00:04]}  Ba3 {[%clk 0:00:05]} 65. Ke6 {[%clk 0:00:03]}  Bb2 {[%clk 0:00:03]} 66. Kxf6 {[%clk 0:00:03]}  Bxc3+ {[%clk 0:00:03]} 67. Ke6 {[%clk 0:00:03]}  Kb6 {[%clk 0:00:02]} 68. f4 {[%clk 0:00:03]} 1-0


[Site "https://www.chess.com"]

[Event "Titled Tuesday Blitz May 30 Early 2023"]
[White "Lazavik, Denis"]
[Black "Durarbayli, Vasif"]
[WhiteFideId "13515110"]
[BlackFideId "13402935"]
[WhiteElo "2560"]
[BlackElo "2551"]
[Result "1-0"]
[Round "10"]
[TimeControl "180+2"]
[Date "2023.05.30"]
[WhiteClock "0:01:12"]
[BlackClock "0:00:00"]

1. d4 {[%clk 0:03:00]}  Nf6 {[%clk 0:03:00]} 2. c4 {[%clk 0:03:01]}  e6 {[%clk 0:03:01]} 3. Nc3 {[%clk 0:03:01]}  Bb4 {[%clk 0:03:00]} 4. e3 {[%clk 0:03:02]}  O-O {[%clk 0:03:01]} 5. Bd3 {[%clk 0:03:02]}  Re8 {[%clk 0:03:01]} 6. Ne2 {[%clk 0:03:00]}  d6 {[%clk 0:03:01]} 7. a3 {[%clk 0:02:57]}  Bxc3+ {[%clk 0:02:59]} 8. Nxc3 {[%clk 0:02:58]}  e5 {[%clk 0:03:00]} 9. O-O {[%clk 0:02:58]}  e4 {[%clk 0:02:57]} 10. Be2 {[%clk 0:02:45]}  Bf5 {[%clk 0:02:54]} 11. b4 {[%clk 0:02:42]}  Nbd7 {[%clk 0:02:52]} 12. Bb2 {[%clk 0:02:42]}  c6 {[%clk 0:02:46]} 13. a4 {[%clk 0:02:41]}  Nf8 {[%clk 0:02:46]} 14. d5 {[%clk 0:02:38]}  Ng6 {[%clk 0:02:44]} 15. a5 {[%clk 0:02:35]}  a6 {[%clk 0:02:35]} 16. dxc6 {[%clk 0:02:32]}  bxc6 {[%clk 0:02:35]} 17. b5 {[%clk 0:02:33]}  axb5 {[%clk 0:02:02]} 18. cxb5 {[%clk 0:02:32]}  Rxa5 {[%clk 0:02:02]} 19. Rxa5 {[%clk 0:01:57]}  Qxa5 {[%clk 0:02:03]} 20. bxc6 {[%clk 0:01:58]}  Qb4 {[%clk 0:01:36]} 21. Ba1 {[%clk 0:01:50]}  Ne7 {[%clk 0:01:12]} 22. Nb5 {[%clk 0:01:45]}  Nfd5 {[%clk 0:01:06]} 23. Qc2 {[%clk 0:01:24]}  Rc8 {[%clk 0:00:59]} 24. Nd4 {[%clk 0:01:23]}  Qc5 {[%clk 0:00:46]} 25. Qb2 {[%clk 0:01:22]}  Nf6 {[%clk 0:00:35]} 26. Rc1 {[%clk 0:01:20]}  Qe5 {[%clk 0:00:35]} 27. Qb7 {[%clk 0:01:18]}  Bg4 {[%clk 0:00:22]} 28. h3 {[%clk 0:01:12]}  Bxe2 {[%clk 0:00:04]} 29. Nxe2 {[%clk 0:01:13]}  Qe6 {[%clk 0:00:00]} 30. Nf4 {[%clk 0:01:12]} 1-0


[Site "https://www.chess.com"]

[Event "Titled Tuesday Blitz May 30 Early 2023"]
[White "Kravtsiv, Martyn"]
[Black "Narayanan, Srinath"]
[WhiteFideId "14113147"]
[BlackFideId "5018420"]
[WhiteElo "2695"]
[BlackElo "2438"]
[Result "1-0"]
[Round "10"]
[TimeControl "180+2"]
[Date "2023.05.30"]
[WhiteClock "0:00:21"]
[BlackClock "0:00:06"]

1. e4 {[%clk 0:03:00]}  c5 {[%clk 0:03:00]} 2. Nf3 {[%clk 0:03:00]}  d6 {[%clk 0:03:00]} 3. Bb5+ {[%clk 0:03:00]}  Bd7 {[%clk 0:03:00]} 4. Bxd7+ {[%clk 0:02:59]}  Nxd7 {[%clk 0:03:01]} 5. O-O {[%clk 0:02:58]}  Ngf6 {[%clk 0:03:01]} 6. Qe2 {[%clk 0:02:57]}  e6 {[%clk 0:02:50]} 7. d4 {[%clk 0:02:56]}  cxd4 {[%clk 0:02:49]} 8. Nxd4 {[%clk 0:02:57]}  Be7 {[%clk 0:02:48]} 9. c4 {[%clk 0:02:58]}  O-O {[%clk 0:02:37]} 10. Nc3 {[%clk 0:02:57]}  Qa5 {[%clk 0:02:37]} 11. Rd1 {[%clk 0:02:37]}  Rac8 {[%clk 0:02:36]} 12. Ndb5 {[%clk 0:02:36]}  Ne5 {[%clk 0:02:26]} 13. Bd2 {[%clk 0:02:16]}  Qd8 {[%clk 0:01:25]} 14. Nxa7 {[%clk 0:02:04]}  Rxc4 {[%clk 0:01:20]} 15. Nab5 {[%clk 0:01:51]}  Qb6 {[%clk 0:01:13]} 16. Be3 {[%clk 0:01:50]}  Qc6 {[%clk 0:01:12]} 17. Na7 {[%clk 0:01:43]}  Qa6 {[%clk 0:01:09]} 18. Nab5 {[%clk 0:01:41]}  Nxe4 {[%clk 0:01:02]} 19. Bd4 {[%clk 0:01:12]}  Nxc3 {[%clk 0:00:45]} 20. Nxc3 {[%clk 0:01:12]}  Nc6 {[%clk 0:00:41]} 21. Be3 {[%clk 0:01:11]}  d5 {[%clk 0:00:42]} 22. a4 {[%clk 0:01:06]}  Bf6 {[%clk 0:00:40]} 23. Bd2 {[%clk 0:00:31]}  Nd4 {[%clk 0:00:35]} 24. Qd3 {[%clk 0:00:31]}  Nb3 {[%clk 0:00:23]} 25. Nxd5 {[%clk 0:00:26]}  Nxa1 {[%clk 0:00:20]} 26. Nxf6+ {[%clk 0:00:26]}  gxf6 {[%clk 0:00:21]} 27. Qg3+ {[%clk 0:00:20]}  Kh8 {[%clk 0:00:06]} 28. Bh6 {[%clk 0:00:21]} 1-0


[Site "https://www.chess.com"]

[Event "Titled Tuesday Blitz May 30 Early 2023"]
[White "Ibarra Jerez, Jose Carlos"]
[Black "Baskakov, Egor"]
[WhiteFideId "2226332"]
[BlackFideId "24197866"]
[WhiteElo "2638"]
[BlackElo "2225"]
[Result "1-0"]
[Round "10"]
[TimeControl "180+2"]
[Date "2023.05.30"]
[WhiteClock "0:00:33"]
[BlackClock "0:00:50"]

1. e4 {[%clk 0:03:00]}  c5 {[%clk 0:02:59]} 2. Nf3 {[%clk 0:03:00]}  Nf6 {[%clk 0:03:00]} 3. e5 {[%clk 0:02:56]}  Nd5 {[%clk 0:03:00]} 4. d4 {[%clk 0:02:55]}  cxd4 {[%clk 0:02:59]} 5. Qxd4 {[%clk 0:02:56]}  e6 {[%clk 0:02:54]} 6. a3 {[%clk 0:02:56]}  Nc6 {[%clk 0:02:55]} 7. Qd1 {[%clk 0:02:56]}  d6 {[%clk 0:02:55]} 8. c4 {[%clk 0:02:54]}  Nc7 {[%clk 0:02:53]} 9. Bf4 {[%clk 0:02:50]}  d5 {[%clk 0:02:53]} 10. Nc3 {[%clk 0:02:49]}  Be7 {[%clk 0:02:51]} 11. h4 {[%clk 0:02:49]}  O-O {[%clk 0:02:49]} 12. Bd3 {[%clk 0:02:48]}  h6 {[%clk 0:02:48]} 13. Bb1 {[%clk 0:02:36]}  f5 {[%clk 0:02:37]} 14. exf6 {[%clk 0:02:34]}  Rxf6 {[%clk 0:02:37]} 15. Bxc7 {[%clk 0:02:29]}  Qxc7 {[%clk 0:02:37]} 16. cxd5 {[%clk 0:02:29]}  exd5 {[%clk 0:02:36]} 17. Nxd5 {[%clk 0:02:21]}  Re6+ {[%clk 0:02:36]} 18. Kf1 {[%clk 0:02:21]}  Qd6 {[%clk 0:02:30]} 19. Nxe7+ {[%clk 0:02:06]}  Qxe7 {[%clk 0:02:31]} 20. Ba2 {[%clk 0:02:06]}  Kh8 {[%clk 0:02:31]} 21. Bxe6 {[%clk 0:02:05]}  Bxe6 {[%clk 0:02:32]} 22. Kg1 {[%clk 0:01:59]}  Bg4 {[%clk 0:02:31]} 23. Qb3 {[%clk 0:01:45]}  Rf8 {[%clk 0:02:29]} 24. Re1 {[%clk 0:00:58]}  Rxf3 {[%clk 0:01:28]} 25. gxf3 {[%clk 0:00:57]}  Qxe1+ {[%clk 0:01:27]} 26. Kg2 {[%clk 0:00:57]}  Be6 {[%clk 0:01:24]} 27. Qxb7 {[%clk 0:00:40]}  Qd2 {[%clk 0:01:00]} 28. Qxc6 {[%clk 0:00:40]}  Bg8 {[%clk 0:01:00]} 29. Qc3 {[%clk 0:00:35]}  Qd8 {[%clk 0:00:57]} 30. Rh3 {[%clk 0:00:35]}  Qe7 {[%clk 0:00:54]} 31. Rg3 {[%clk 0:00:35]}  Bd5 {[%clk 0:00:50]} 32. Qc8+ {[%clk 0:00:33]} 1-0


[Site "https://www.chess.com"]

[Event "Titled Tuesday Blitz May 30 Early 2023"]
[White "Gorovets, Andrey"]
[Black "Makarian, Rudik"]
[WhiteFideId "13504037"]
[BlackFideId "44105681"]
[WhiteElo "2459"]
[BlackElo "2461"]
[Result "1-0"]
[Round "10"]
[TimeControl "180+2"]
[Date "2023.05.30"]
[WhiteClock "0:00:07"]
[BlackClock "0:00:03"]

1. Nf3 {[%clk 0:03:00]}  Nf6 {[%clk 0:02:59]} 2. g3 {[%clk 0:03:01]}  b5 {[%clk 0:02:55]} 3. Bg2 {[%clk 0:02:54]}  Bb7 {[%clk 0:02:55]} 4. d3 {[%clk 0:02:54]}  e6 {[%clk 0:02:55]} 5. O-O {[%clk 0:02:54]}  Be7 {[%clk 0:02:54]} 6. a4 {[%clk 0:02:49]}  b4 {[%clk 0:02:54]} 7. e4 {[%clk 0:02:49]}  d5 {[%clk 0:02:53]} 8. Nbd2 {[%clk 0:02:47]}  O-O {[%clk 0:02:53]} 9. a5 {[%clk 0:02:40]}  c5 {[%clk 0:02:43]} 10. Re1 {[%clk 0:02:39]}  a6 {[%clk 0:02:40]} 11. exd5 {[%clk 0:02:20]}  exd5 {[%clk 0:02:41]} 12. Ne5 {[%clk 0:02:13]}  Re8 {[%clk 0:02:36]} 13. Nb3 {[%clk 0:02:00]}  Nfd7 {[%clk 0:02:19]} 14. Nxf7 {[%clk 0:01:47]}  Kxf7 {[%clk 0:02:20]} 15. Qh5+ {[%clk 0:01:47]}  Kf8 {[%clk 0:02:17]} 16. Qxh7 {[%clk 0:01:16]}  Nf6 {[%clk 0:02:11]} 17. Qg6 {[%clk 0:01:13]}  Nc6 {[%clk 0:01:52]} 18. Bg5 {[%clk 0:01:04]}  Bd6 {[%clk 0:01:28]} 19. Bxd5 {[%clk 0:00:57]}  Nxd5 {[%clk 0:00:21]} 20. Bxd8 {[%clk 0:00:54]}  Rxe1+ {[%clk 0:00:22]} 21. Rxe1 {[%clk 0:00:54]}  Rxd8 {[%clk 0:00:23]} 22. Qf5+ {[%clk 0:00:31]}  Nf6 {[%clk 0:00:20]} 23. Nxc5 {[%clk 0:00:28]}  Nd4 {[%clk 0:00:18]} 24. Ne6+ {[%clk 0:00:23]}  Nxe6 {[%clk 0:00:18]} 25. Rxe6 {[%clk 0:00:19]}  Bc8 {[%clk 0:00:16]} 26. Rxf6+ {[%clk 0:00:11]}  gxf6 {[%clk 0:00:17]} 27. Qxf6+ {[%clk 0:00:12]}  Ke8 {[%clk 0:00:17]} 28. h4 {[%clk 0:00:12]}  Be7 {[%clk 0:00:17]} 29. Qg6+ {[%clk 0:00:12]}  Kd7 {[%clk 0:00:14]} 30. h5 {[%clk 0:00:13]}  Bb7 {[%clk 0:00:15]} 31. h6 {[%clk 0:00:10]}  Bd5 {[%clk 0:00:14]} 32. h7 {[%clk 0:00:09]}  b3 {[%clk 0:00:06]} 33. c4 {[%clk 0:00:08]}  Be6 {[%clk 0:00:05]} 34. Qg7 {[%clk 0:00:07]}  Kd6 {[%clk 0:00:03]} 35. h8=Q {[%clk 0:00:08]}  Rxh8 {[%clk 0:00:04]} 36. Qxh8 {[%clk 0:00:08]}  Bf5 {[%clk 0:00:04]} 37. Qc3 {[%clk 0:00:08]}  Bg5 {[%clk 0:00:04]} 38. Qxb3 {[%clk 0:00:09]}  Bd2 {[%clk 0:00:04]} 39. Qb6+ {[%clk 0:00:09]}  Ke7 {[%clk 0:00:05]} 40. Qc5+ {[%clk 0:00:08]}  Ke6 {[%clk 0:00:05]} 41. Qd5+ {[%clk 0:00:08]}  Kf6 {[%clk 0:00:05]} 42. Qd4+ {[%clk 0:00:08]}  Ke6 {[%clk 0:00:05]} 43. c5 {[%clk 0:00:08]}  Bxa5 {[%clk 0:00:05]} 44. Qd6+ {[%clk 0:00:08]}  Kf7 {[%clk 0:00:06]} 45. Qxa6 {[%clk 0:00:09]}  Bd8 {[%clk 0:00:06]} 46. c6 {[%clk 0:00:09]}  Ke7 {[%clk 0:00:05]} 47. Qb5 {[%clk 0:00:06]}  Be6 {[%clk 0:00:04]} 48. Qc5+ {[%clk 0:00:06]}  Ke8 {[%clk 0:00:04]} 49. c7 {[%clk 0:00:07]}  Be7 {[%clk 0:00:03]} 50. c8=Q+ {[%clk 0:00:07]} 1-0


[Site "https://www.chess.com"]